fUSD/lending_fUSD_20250202
["ID","MTS","AMOUNT","RATE_DAILY","PERIOD"]
[351271001,1738504284525,-500.0,0.00011643,2]
[351271002,1738504284535,-2481.47,0.00011643,2]
[351271003,1738504284546,-599.47,0.00011643,2]
[351271004,1738504284555,-500.0,0.00011643,2]
[351271005,1738504284566,-522.22,0.00011643,2]
[351271006,1738504284575,-500.0,0.00011643,2]
[351271007,1738504284585,-410.05213844,0.00011643,2]
[351271008,1738504284595,-500.0,0.00011643,2]
[351271009,1738504284604,-500.0,0.00011643,2]
[351271010,1738504284614,-500.0,0.00011643,2]
[351271011,1738504284623,-965.66,0.00011643,2]
[351271012,1738504284633,-1286.64,0.00011643,2]
[351271013,1738504284642,-500.0,0.00011643,2]
[351271014,1738504284652,-529.36,0.00011643,2]
[351271015,1738504284661,-327.89862818,0.00011643,2]
[351271016,1738504284671,-1049.85,0.00011643,2]
[351271017,1738504284681,-500.0,0.00011643,2]
[351271018,1738504284691,-1006.46,0.00011643,2]
[351271019,1738504284702,-500.0,0.00011643,2]
[351271020,1738504284711,-500.0,0.00011643,2]
[351271021,1738504284720,-500.0,0.00011643,2]
[351271022,1738504284730,-614.85,0.00011643,2]
[351271023,1738504284740,-1871.33,0.00011643,2]
[351271024,1738504284749,-500.0,0.00011643,2]
[351271025,1738504284759,-625.4,0.00011643,2]
[351271026,1738504284768,-659.73,0.00011643,2]
[351271027,1738504284778,-500.0,0.00011643,2]
[351271028,1738504284787,-500.0,0.00011643,2]
[351271029,1738504284797,-500.0,0.00011643,2]
[351271030,1738504284806,-1846.27,0.00011643,2]
[351271031,1738504284815,-500.0,0.00011643,2]
[351271032,1738504284825,-500.0,0.00011643,2]
[351271033,1738504284834,-762.07,0.00011643,2]
[351271034,1738504284843,-500.0,0.00011643,2]
[351271035,1738504284853,-589.38,0.00011643,2]
[351271036,1738504284862,-569.09,0.00011643,2]
[351271037,1738504284872,-1236.97,0.00011643,2]
[351271038,1738504284882,-795.49,0.00011643,2]
[351271039,1738504284891,-500.0,0.00011643,2]
[351271040,1738504284901,-636.71,0.00011643,2]
[351271041,1738504284911,-1333.24,0.00011643,2]
[351271042,1738504284921,-1073.33,0.00011643,2]
[351271043,1738504284930,-500.0,0.00011643,2]
[351271044,1738504284937,-1349.72,0.00011643,2]
[351271045,1738504284947,-500.0,0.00011643,2]
[351271046,1738504284957,-643.11,0.00011643,2]
[351271047,1738504284968,-813.06,0.00011643,2]
[351271048,1738504284977,-557.51075936,0.00011643,2]
[351271049,1738504284988,-500.0,0.00011643,2]
[351271050,1738504284998,-500.0,0.00011643,2]
[351271051,1738504285008,-666.25,0.00011643,2]
[351271052,1738504285018,-4276.69,0.00011643,2]
[351271053,1738504285027,-500.0,0.00011643,2]
[351271054,1738504285037,-500.0,0.00011643,2]
[351271055,1738504285046,-500.0,0.00011643,2]
[351271056,1738504285056,-687.97,0.00011643,2]
[351271057,1738504285065,-252.54499565,0.00011643,2]
[351271058,1738504285076,-500.0,0.00011643,2]
[351271059,1738504285085,-500.0,0.00011643,2]
[351271060,1738504285095,-500.0,0.00011643,2]
[351271061,1738504285105,-1888.12,0.00011643,2]
[351271062,1738504285115,-500.0,0.00011643,2]
[351271063,1738504285125,-500.0,0.00011643,2]
[351271064,1738504285135,-500.0,0.00011643,2]
[351271065,1738504285145,-500.0,0.00011643,2]
[351271066,1738504285155,-500.0,0.00011643,2]
[351271067,1738504285166,-500.0,0.00011643,2]
[351271068,1738504285177,-2650.77,0.00011643,2]
[351271069,1738504285189,-513.37071642,0.00011643,2]
[351271070,1738504285199,-889.49,0.00011643,2]
[351271071,1738504285210,-500.0,0.00011643,2]
[351271072,1738504285220,-500.0,0.00011643,2]
[351271073,1738504285230,-500.0,0.00011643,2]
[351271074,1738504285240,-692.85,0.00011643,2]
[351271075,1738504285250,-2073.43,0.00011643,2]
[351271076,1738504285260,-278.21352267,0.00011643,2]
[351271077,1738504285270,-631.15,0.00011643,2]
[351271078,1738504285279,-500.0,0.00011643,2]
[351271079,1738504285289,-500.0,0.00011643,2]
[351271080,1738504285299,-500.0,0.00011643,2]
[351271081,1738504285308,-1741.6,0.00011643,2]
[351271082,1738504285508,-1164.33,0.00011643,2]
[351271083,1738504285519,-5378.97,0.00011643,2]
[351271084,1738504285530,-782.16,0.00011643,2]
[351271085,1738504285541,-500.0,0.00011643,2]
[351271086,1738504285551,-1939.2,0.00011643,2]
[351271087,1738504285561,-500.0,0.00011643,2]
[351271088,1738504285571,-500.0,0.00011643,2]
[351271089,1738504285580,-500.0,0.00011643,2]
[351271090,1738504285590,-500.0,0.00011643,2]
[351271091,1738504285600,-3479.36,0.00011643,2]
[351271092,1738504285610,-2115.64,0.00011643,2]
[351271093,1738504285620,-500.0,0.00011643,2]
[351271094,1738504285629,-500.0,0.00011643,2]
[351271095,1738504285639,-500.0,0.00011643,2]
[351271096,1738504285649,-500.0,0.00011643,2]
[351271097,1738504285658,-1744.78,0.00011643,2]
[351271098,1738504285668,-1775.36,0.00011643,2]
[351271099,1738504285678,-500.0,0.00011643,2]
[351271100,1738504285688,-635.62,0.00011643,2]
[351271101,1738504285698,-500.0,0.00011643,2]
[351271102,1738504285708,-500.0,0.00011643,2]
[351271103,1738504285718,-635.75,0.00011643,2]
[351271104,1738504285728,-577.14,0.00011643,2]
[351271105,1738504285737,-4758.77,0.00011643,2]
[351271106,1738504285747,-500.0,0.00011643,2]
[351271107,1738504285757,-535.02,0.00011643,2]
[351271108,1738504285767,-1040.09,0.00011643,2]
[351271109,1738504285777,-500.0,0.00011643,2]
[351271110,1738504285786,-1651.88,0.00011643,2]
[351271111,1738504285796,-2719.88,0.00011643,2]
[351271112,1738504285805,-1058.2,0.00011643,2]
[351271113,1738504285815,-500.0,0.00011643,2]
[351271114,1738504285825,-500.0,0.00011643,2]
[351271115,1738504285834,-500.0,0.00011643,2]
[351271116,1738504285844,-1016.81,0.00011643,2]
[351271117,1738504285853,-556.1,0.00011643,2]
[351271118,1738504285862,-500.0,0.00011643,2]
[351271119,1738504285870,-500.0,0.00011643,2]
[351271120,1738504285879,-2588.77,0.00011643,2]
[351271121,1738504285889,-500.0,0.00011643,2]
[351271122,1738504285898,-500.0,0.00011643,2]
[351271123,1738504285908,-500.0,0.00011643,2]
[351271124,1738504285917,-932.81,0.00011643,2]
[351271125,1738504285928,-1942.11,0.00011643,2]
[351271126,1738504285938,-500.0,0.00011643,2]
[351271127,1738504285947,-2418.85,0.00011643,2]
[351271128,1738504285957,-1733.68,0.00011643,2]
[351271129,1738504285966,-602.88790746,0.00011643,2]
[351271130,1738504285977,-2393.49,0.00011643,2]
[351271131,1738504285990,-500.0,0.00011643,2]
[351271132,1738504286001,-566.87,0.00011643,2]
[351271133,1738504286010,-3124.44,0.00011643,2]
[351271134,1738504286019,-478.40655895,0.00011643,2]
[351271135,1738504286029,-692.82,0.00011643,2]
[351271136,1738504286038,-2525.16,0.00011643,2]
[351271137,1738504286049,-500.0,0.00011643,2]
[351271138,1738504286058,-1914.95,0.00011643,2]
[351271139,1738504286067,-8288.01,0.00011643,2]
[351271140,1738504286077,-500.0,0.00011643,2]
[351271141,1738504286086,-1132.95,0.00011643,2]
[351271142,1738504286095,-884.77,0.00011643,2]
[351271143,1738504286106,-500.0,0.00011643,2]
[351271144,1738504286115,-4152.35,0.00011643,2]
[351271145,1738504286125,-500.0,0.00011643,2]
[351271146,1738504286134,-500.0,0.00011643,2]
[351271147,1738504286143,-500.0,0.00011643,2]
[351271148,1738504286153,-1549.92,0.00011643,2]
[351271149,1738504286163,-3699.04,0.00011643,2]
[351271150,1738504286172,-3349.22,0.00011643,2]
[351271151,1738504286184,-2155.85,0.00011643,2]
[351271152,1738504286193,-553.14,0.00011643,2]
[351271153,1738504286203,-500.0,0.00011643,2]
[351271154,1738504286213,-508.52502765,0.00011643,2]
[351271155,1738504286222,-5222.05,0.00011643,2]
[351271156,1738504286231,-500.0,0.00011643,2]
[351271157,1738504286241,-500.0,0.00011643,2]
[351271158,1738504286250,-1265.95,0.00011643,2]
[351271159,1738504286260,-1887.09,0.00011643,2]
[351271160,1738504286270,-4613.26,0.00011643,2]
[351271161,1738504286279,-500.0,0.00011643,2]
[351271162,1738504286288,-500.0,0.00011643,2]
[351271163,1738504286298,-1975.44,0.00011643,2]
[351271164,1738504286307,-7500.21,0.00011643,2]
[351271165,1738504286316,-1842.34,0.00011643,2]
[351271166,1738504286325,-500.0,0.00011643,2]
[351271167,1738504286334,-6467.51,0.00011643,2]
[351271168,1738504286344,-2260.28,0.00011643,2]
[351271169,1738504286353,-500.0,0.00011643,2]
[351271170,1738504286362,-4127.19,0.00011643,2]
[351271171,1738504286371,-625.86,0.00011643,2]
[351271172,1738504286381,-500.0,0.00011643,2]
[351271173,1738504286391,-522.95,0.00011643,2]
[351271174,1738504286400,-500.0,0.00011643,2]
[351271175,1738504286409,-2930.25,0.00011643,2]
[351271176,1738504286419,-500.0,0.00011643,2]
[351271177,1738504286429,-500.0,0.00011643,2]
[351271178,1738504286438,-500.0,0.00011643,2]
[351271179,1738504286446,-1487.62,0.00011643,2]
[351271180,1738504286456,-2190.38,0.00011643,2]
[351271181,1738504286467,-7605.13,0.00011643,2]
[351271182,1738504286476,-1340.89,0.00011643,2]
[351271183,1738504286486,-500.0,0.00011643,2]
[351271184,1738504286495,-527.51,0.00011643,2]
[351271185,1738504286505,-500.0,0.00011643,2]
[351271186,1738504286514,-500.0,0.00011643,2]
[351271187,1738504286524,-500.0,0.00011643,2]
[351271188,1738504286533,-500.0,0.00011643,2]
[351271189,1738504286542,-3333.87,0.00011643,2]
[351271190,1738504286552,-500.0,0.00011643,2]
[351271191,1738504286561,-4428.35,0.00011643,2]
[351271192,1738504286571,-502.79541588,0.00011643,2]
[351271193,1738504286580,-749.13,0.00011643,2]
[351271194,1738504286589,-500.0,0.00011643,2]
[351271195,1738504286598,-500.0,0.00011643,2]
[351271196,1738504286607,-724.96,0.00011643,2]
[351271197,1738504286616,-6018.72,0.00011643,2]
[351271198,1738504286625,-2737.51,0.00011643,2]
[351271199,1738504286635,-500.0,0.00011643,2]
[351271200,1738504286643,-2541.32,0.00011643,2]
[351271201,1738504286652,-5735.11,0.00011643,2]
[351271202,1738504286661,-1106.65,0.00011643,2]
[351271203,1738504286671,-700.57,0.00011643,2]
[351271204,1738504286681,-12278.4,0.00011643,2]
[351271205,1738504286690,-1347.61,0.00011643,2]
[351271206,1738504286699,-500.0,0.00011643,2]
[351271207,1738504286708,-4277.99,0.00011643,2]
[351271208,1738504286718,-2014.34,0.00011643,2]
[351271209,1738504286727,-9838.32,0.00011643,2]
[351271210,1738504286737,-543.94,0.00011643,2]
[351271211,1738504286746,-1686.35,0.00011643,2]
[351271212,1738504286755,-500.0,0.00011643,2]
[351271213,1738504286765,-500.0,0.00011643,2]
[351271214,1738504286774,-13955.14,0.00011643,2]
[351271215,1738504286783,-500.0,0.00011643,2]
[351271216,1738504286792,-500.15,0.00011643,2]
[351271217,1738504286801,-8050.75,0.00011643,2]
[351271218,1738504286811,-500.0,0.00011643,2]
[351271219,1738504286820,-500.0,0.00011643,2]
[351271220,1738504286829,-500.0,0.00011643,2]
[351271221,1738504286838,-500.0,0.00011643,2]
[351271222,1738504286847,-500.0,0.00011643,2]
[351271223,1738504286856,-500.0,0.00011643,2]
[351271224,1738504286866,-4979.31,0.00011643,2]
[351271225,1738504286875,-500.0,0.00011643,2]
[351271226,1738504286885,-7528.65,0.00011643,2]
[351271227,1738504286895,-500.0,0.00011643,2]
[351271228,1738504286904,-1328.42,0.00011643,2]
[351271229,1738504286913,-500.0,0.00011643,2]
[351271230,1738504286923,-8671.46,0.00011643,2]
[351271231,1738504286934,-500.0,0.00011643,2]
[351271232,1738504286944,-500.0,0.00011643,2]
[351271233,1738504286954,-500.0,0.00011643,2]
[351271234,1738504286963,-500.0,0.00011643,2]
[351271235,1738504286974,-500.0,0.00011643,2]
[351271236,1738504286983,-500.0,0.00011643,2]
[351271237,1738504286993,-500.0,0.00011643,2]
[351271238,1738504287003,-500.0,0.00011643,2]
[351271239,1738504287012,-4988.6,0.00011643,2]
[351271240,1738504287022,-500.0,0.00011643,2]
[351271241,1738504287032,-1284.16,0.00011643,2]
[351271242,1738504287042,-651.92,0.00011643,2]
[351271243,1738504287051,-2888.57,0.00011643,2]
[351271244,1738504287060,-572.58,0.00011643,2]
[351271245,1738504287069,-663.18,0.00011643,2]
[351271246,1738504287079,-500.0,0.00011643,2]
[351271247,1738504287088,-1242.68,0.00011643,2]
[351271248,1738504287096,-500.0,0.00011643,2]
[351271249,1738504287105,-500.0,0.00011643,2]
[351271250,1738504287114,-3206.11,0.00011643,2]
[351271251,1738504287123,-692.3,0.00011643,2]
[351271252,1738504287132,-500.0,0.00011643,2]
[351271253,1738504287142,-500.0,0.00011643,2]
[351271254,1738504287151,-3656.21,0.00011643,2]
[351271255,1738504287162,-500.0,0.00011643,2]
[351271256,1738504287171,-552.81,0.00011643,2]
[351271257,1738504287181,-500.0,0.00011643,2]
[351271258,1738504287190,-153.5843547,0.00011643,2]
[351271259,1738504287199,-500.0,0.00011643,2]
[351271260,1738504287209,-500.0,0.00011643,2]
[351271261,1738504287218,-500.0,0.00011643,2]
[351271262,1738504287227,-500.0,0.00011643,2]
[351271263,1738504287236,-3947.41,0.00011643,2]
[351271264,1738504287245,-4905.43,0.00011643,2]
[351271265,1738504287254,-1981.9,0.00011643,2]
[351271266,1738504287264,-1643.29,0.00011643,2]
[351271267,1738504287274,-500.0,0.00011643,2]
[351271268,1738504287285,-14841.38,0.00011643,2]
[351271269,1738504287295,-3557.6,0.00011643,2]
[351271270,1738504287305,-542.27,0.00011643,2]
[351271271,1738504287315,-500.0,0.00011643,2]
[351271272,1738504287325,-1169.41,0.00011643,2]
[351271273,1738504287335,-500.0,0.00011643,2]
[351271274,1738504287345,-1818.01,0.00011643,2]
[351271275,1738504287354,-794.77,0.00011643,2]
[351271276,1738504287363,-500.0,0.00011643,2]
[351271277,1738504287372,-12108.26,0.00011643,2]
[351271278,1738504287382,-500.0,0.00011643,2]
[351271279,1738504287392,-500.0,0.00011643,2]
[351271280,1738504287401,-1065.17,0.00011643,2]
[351271281,1738504287410,-2162.4,0.00011643,2]
[351271282,1738504287419,-161.39830479,0.00011643,2]
[351271283,1738504287431,-500.0,0.00011643,2]
[351271284,1738504287440,-500.0,0.00011643,2]
[351271285,1738504287449,-500.0,0.00011643,2]
[351271286,1738504287459,-11811.14,0.00011643,2]
[351271287,1738504287468,-2656.04,0.00011643,2]
[351271288,1738504287477,-500.0,0.00011643,2]
[351271289,1738504287487,-1449.28,0.00011643,2]
[351271290,1738504287497,-500.0,0.00011643,2]
[351271291,1738504287506,-500.0,0.00011643,2]
[351271292,1738504287516,-5655.33,0.00011643,2]
[351271293,1738504287526,-725.88,0.00011643,2]
[351271294,1738504287535,-1879.37,0.00011643,2]
[351271295,1738504287544,-500.0,0.00011643,2]
[351271296,1738504287553,-500.0,0.00011643,2]
[351271297,1738504287562,-2237.55,0.00011643,2]
[351271298,1738504287572,-500.0,0.00011643,2]
[351271299,1738504287582,-1663.9,0.00011643,2]
[351271300,1738504287592,-500.0,0.00011643,2]
[351271301,1738504287601,-500.0,0.00011643,2]
[351271302,1738504287611,-500.89,0.00011643,2]
[351271303,1738504287620,-2994.29,0.00011643,2]
[351271304,1738504287630,-651.46,0.00011643,2]
[351271305,1738504287639,-500.0,0.00011643,2]
[351271306,1738504287649,-500.0,0.00011643,2]
[351271307,1738504287659,-899.76,0.00011643,2]
[351271308,1738504287668,-10069.92,0.00011643,2]
[351271309,1738504287678,-500.0,0.00011643,2]
[351271310,1738504287692,-160.68382969,0.00011664,2]
[351271311,1738504287702,-3468.75,0.00011679,2]
[351271312,1738504287712,-2973.17,0.00011679,2]
[351271313,1738504287722,-727.2,0.00011679,2]
[351271314,1738504287731,-2207.77125524,0.00011679,2]
[351271315,1738504288330,-469.42874476,0.00011679,2]
[351271316,1738504288340,-1594.63,0.00011679,2]
[351271317,1738504288350,-2774.99,0.00011679,2]
[351271318,1738504288359,-2506.27,0.00011679,2]
[351271319,1738504288369,-2895.82225523,0.00011679,2]
[351271320,1738504288381,-795.99774477,0.00011679,2]
[351271321,1738504288391,-2224.24,0.00011679,2]
[351271322,1738504288400,-8875.35,0.00011679,2]
[351271323,1738504288409,-15774.79,0.00011679,2]
[351271324,1738504288419,-3052.76,0.00011679,2]
[351271325,1738504288430,-4943.15,0.00011679,2]
[351271326,1738504288440,-494.21636138,0.00011688,2]
[351271327,1738504288449,-156.97271821,0.00011699,2]
[351271328,1738504288459,-600.0,0.000117,4]
[351271329,1738504288468,-500.0,0.00011722,2]
[351271330,1738504288477,-1334.37543965,0.00011722,2]
[351271331,1738504288497,-305.48456035,0.00011722,2]
[351271332,1738504288506,-500.0,0.00011744,2]
[351271333,1738504288515,-1513.68,0.00011744,2]
[351271334,1738504288524,-1504.56683965,0.00011748,2]
[351271335,1738504288536,-158.43316035,0.00011748,2]
[351271336,1738504288546,-437.6313588,0.00011759,2]
[351271337,1738504289521,-500.0,0.00010958,2]
[351271338,1738504289530,-500.0,0.00010958,2]
[351271339,1738504289540,-809.18,0.00010994,2]
[351271340,1738504289550,-500.0,0.00011095,2]
[351271341,1738504289559,-500.0,0.00011095,2]
[351271342,1738504289568,-809.18,0.00011131,2]
[351271343,1738504289578,-500.0,0.00011232,2]
[351271344,1738504289588,-500.0,0.00011232,2]
[351271345,1738504289598,-497.51829999,0.00011268,2]
[351271346,1738504289609,-311.66170001,0.00011268,2]
[351271347,1738504289619,-2131.06,0.00011369,2]
[351271348,1738504289628,-500.0,0.00011369,2]
[351271349,1738504289638,-719.30274817,0.00011506,2]
[351271350,1738504289649,-985.94341234,0.00011506,2]
[351271351,1738504289699,-809.18,0.00011405,2]
[351271352,1738504289708,-425.81383949,0.00011506,2]
[351271353,1738504289718,-500.0,0.00011506,2]
[351271354,1738504289727,-286.64616051,0.00011643,2]
[351271355,1738504289739,-1844.41383949,0.00011643,2]
[351271356,1738504289748,-62.3686412,0.00011759,2]
[351271357,1738504289757,-4399.71,0.00011759,2]
[351271358,1738504289767,-1022.30731931,0.0001176,2]
[351271359,1738504289777,-52.87051279,0.0001176,2]
[351271360,1738504289787,-593.34,0.00011778,2]
[351271361,1738504289796,-500.0,0.00011779,2]
[351271362,1738504289807,-9257.87,0.00011779,2]
[351271363,1738504289816,-3051.56,0.00011779,2]
[351271364,1738504289825,-1328.85,0.00011779,2]
[351271365,1738504289834,-1283.55,0.00011779,2]
[351271366,1738504289843,-8231.95,0.00011779,2]
[351271367,1738504289852,-3044.32,0.00011779,2]
[351271368,1738504289861,-1095.71911568,0.00011779,2]
[351271369,1738504289872,-2378.32088432,0.00011779,2]
[351271370,1738504289881,-500.0,0.00011779,2]
[351271371,1738504289891,-1339.21927034,0.00011779,2]
[351271372,1738504289902,-1559.31079056,0.00011779,2]
[351271373,1738504289913,-493.20959227,0.00011779,2]
[351271374,1738504289924,-390.62034683,0.00011779,2]
[351271375,1738504289936,-417.08599189,0.00011779,2]
[351271376,1738504290539,-522.12076232,0.00010958,2]
[351271377,1738504290554,-500.0,0.00011369,2]
[351271378,1738504290567,-500.0,0.00011506,2]
[351271379,1738504290580,-809.18,0.00011542,2]
[351271380,1738504290596,-500.0,0.00011643,2]
[351271381,1738504290611,-500.0,0.00011643,2]
[351271382,1738504290625,-809.18,0.00011679,2]
[351271383,1738504290641,-1769.20400811,0.00011779,2]
[351271384,1738504290656,-97.34377467,0.00011779,2]
[351271385,1738504290675,-2409.83622533,0.00011779,2]
[351271386,1738504290692,-1844.24,0.00011779,2]
[351271387,1738504290706,-3183.94,0.00011779,2]
[351271388,1738504290721,-1347.57,0.00011779,2]
[351271389,1738504290737,-899.57,0.00011779,2]
[351271390,1738504290751,-5128.4,0.00011779,2]
[351271391,1738504290763,-4399.71,0.00011779,2]
[351271392,1738504290774,-1259.21,0.00011779,2]
[351271393,1738504290791,-2416.75,0.00011779,2]
[351271394,1738504290804,-500.0,0.00011779,2]
[351271395,1738504290816,-500.0,0.00011779,2]
[351271396,1738504290830,-1159.96851713,0.0001178,2]
[351271397,1738504290843,-1275.83,0.0001178,2]
[351271398,1738504290855,-500.0,0.0001178,2]
[351271399,1738504290868,-500.0,0.0001178,2]
[351271400,1738504290885,-500.0,0.0001178,2]
[351271401,1738504290898,-659.01,0.0001178,2]
[351271402,1738504290911,-500.0,0.0001178,2]
[351271403,1738504290924,-500.0,0.0001178,2]
[351271404,1738504290938,-500.0,0.0001178,2]
[351271405,1738504290951,-500.0,0.0001178,2]
[351271406,1738504290965,-500.0,0.0001178,2]
[351271407,1738504290979,-500.0,0.0001178,2]
[351271408,1738504290992,-500.65,0.0001178,2]
[351271409,1738504291006,-596.08,0.0001178,2]
[351271410,1738504291020,-867.7,0.0001178,2]
[351271411,1738504291034,-500.0,0.0001178,2]
[351271412,1738504291047,-500.0,0.0001178,2]
[351271413,1738504291060,-500.0,0.0001178,2]
[351271414,1738504291073,-474.14658583,0.0001178,2]
[351271415,1738504291087,-500.0,0.0001178,2]
[351271416,1738504291101,-500.0,0.0001178,2]
[351271417,1738504291114,-500.96,0.0001178,2]
[351271418,1738504291127,-500.0,0.0001178,2]
[351271419,1738504291140,-500.0,0.0001178,2]
[351271420,1738504291153,-500.0,0.0001178,2]
[351271421,1738504291167,-500.0,0.0001178,2]
[351271422,1738504291184,-500.0,0.0001178,2]
[351271423,1738504291197,-515.53301938,0.0001178,2]
[351271424,1738504291210,-500.0,0.0001178,2]
[351271425,1738504291225,-587.58,0.0001178,2]
[351271426,1738504291238,-613.32,0.0001178,2]
[351271427,1738504291251,-500.0,0.0001178,2]
[351271428,1738504291265,-500.0,0.0001178,2]
[351271429,1738504291278,-511.96,0.0001178,2]
[351271430,1738504291291,-500.0,0.0001178,2]
[351271431,1738504291304,-500.0,0.0001178,2]
[351271432,1738504291317,-500.0,0.0001178,2]
[351271433,1738504291330,-642.25608477,0.0001178,2]
[351271434,1738504291345,-500.0,0.0001178,2]
[351271435,1738504291358,-59.85613175,0.0001178,2]
[351271436,1738504291415,-745.07386825,0.0001178,2]
[351271437,1738504291429,-562.51,0.0001178,2]
[351271438,1738504291445,-500.0,0.0001178,2]
[351271439,1738504291458,-409.85729209,0.0001178,2]
[351271440,1738504291474,-90.14270791,0.0001178,2]
[351271441,1738504291487,-500.0,0.0001178,2]
[351271442,1738504291500,-500.0,0.0001178,2]
[351271443,1738504291514,-500.0,0.0001178,2]
[351271444,1738504291528,-500.0,0.0001178,2]
[351271445,1738504291542,-500.0,0.0001178,2]
[351271446,1738504291555,-500.0,0.0001178,2]
[351271447,1738504291569,-500.0,0.0001178,2]
[351271448,1738504291582,-500.0,0.0001178,2]
[351271449,1738504291595,-500.0,0.0001178,2]
[351271450,1738504291607,-692.37,0.0001178,2]
[351271451,1738504291621,-509.03858767,0.0001178,2]
[351271452,1738504291634,-500.0,0.0001178,2]
[351271453,1738504291646,-500.0,0.0001178,2]
[351271454,1738504291657,-621.35,0.0001178,2]
[351271455,1738504291670,-500.0,0.0001178,2]
[351271456,1738504291682,-673.47,0.0001178,2]
[351271457,1738504291695,-1236.43,0.0001178,2]
[351271458,1738504291707,-500.0,0.0001178,2]
[351271459,1738504291719,-507.22,0.0001178,2]
[351271460,1738504291731,-500.0,0.0001178,2]
[351271461,1738504291742,-965.22,0.0001178,2]
[351271462,1738504291754,-1101.6,0.0001178,2]
[351271463,1738504291766,-778.66,0.0001178,2]
[351271464,1738504291778,-801.88,0.0001178,2]
[351271465,1738504291789,-500.0,0.0001178,2]
[351271466,1738504291801,-500.0,0.0001178,2]
[351271467,1738504291813,-500.0,0.0001178,2]
[351271468,1738504291825,-500.0,0.0001178,2]
[351271469,1738504291836,-500.0,0.0001178,2]
[351271470,1738504291848,-500.0,0.0001178,2]
[351271471,1738504291859,-627.76,0.0001178,2]
[351271472,1738504291872,-500.0,0.0001178,2]
[351271473,1738504291884,-500.0,0.0001178,2]
[351271474,1738504291896,-658.67,0.0001178,2]
[351271475,1738504291908,-600.42,0.0001178,2]
[351271476,1738504291919,-500.0,0.0001178,2]
[351271477,1738504291931,-370.42112504,0.0001178,2]
[351271478,1738504291944,-500.0,0.0001178,2]
[351271479,1738504291955,-500.0,0.0001178,2]
[351271480,1738504291967,-500.0,0.0001178,2]
[351271481,1738504291979,-500.0,0.0001178,2]
[351271482,1738504291991,-500.0,0.0001178,2]
[351271483,1738504292003,-519.27,0.0001178,2]
[351271484,1738504292015,-500.0,0.0001178,2]
[351271485,1738504292028,-500.0,0.0001178,2]
[351271486,1738504292041,-500.0,0.0001178,2]
[351271487,1738504292053,-583.74,0.0001178,2]
[351271488,1738504292067,-500.0,0.0001178,2]
[351271489,1738504292080,-500.0,0.0001178,2]
[351271490,1738504292093,-500.0,0.0001178,2]
[351271491,1738504292105,-500.0,0.0001178,2]
[351271492,1738504292119,-886.58,0.0001178,2]
[351271493,1738504292131,-500.0,0.0001178,2]
[351271494,1738504292143,-784.63,0.0001178,2]
[351271495,1738504292153,-500.0,0.0001178,2]
[351271496,1738504292167,-1054.02,0.0001178,2]
[351271497,1738504292186,-506.16875181,0.0001178,2]
[351271498,1738504292200,-2967.16,0.0001178,2]
[351271499,1738504292213,-776.62,0.0001178,2]
[351271500,1738504292229,-2195.36,0.0001178,2]